bitfinex/quotes_ETHUSD_20260125
["timestamp","ask_amount","ask_price","bid_price","bid_amount"]
[1769346164558,0.00030157,2944.1,2943.7,0.001]
[1769346165740,1.21504327,2944.1,2943.3,2.24237599]
[1769346165942,1.21504327,2944.1,2943.3,0.001]
[1769346166160,1.21504327,2944.1,2943.1,0.001]
[1769346166161,0.20641788,2944.0,2943.1,0.001]
[1769346166340,1.20844179,2943.9,2943.1,0.001]
[1769346168447,1.19805852,2943.7,2943.1,0.001]
[1769346168653,1.19805852,2943.5,2942.5,2.24237599]
[1769346170156,0.41192246,2943.5,2942.5,2.46661359]
[1769346170348,0.41192246,2943.5,2942.7,2.24137599]
[1769346170541,0.41192246,2943.5,2942.8,2.27535723]
[1769346171855,2.9211661,2943.7,2942.8,2.27535723]
[1769346172941,2.9211661,2943.7,2942.9,2.24137599]
[1769346173271,2.9211661,2943.7,2943.1,2.24137599]
[1769346173468,0.20641788,2944.0,2943.3,2.24137599]
[1769346173681,0.20641788,2944.0,2943.4,2.2753503]
[1769346175245,0.00030157,2944.1,2943.4,2.24137599]
[1769346175847,0.002,2943.8,2943.4,2.24137599]
[1769346181049,0.002,2943.8,2943.5,2.24137599]
[1769346181472,1.13690048,2943.8,2942.8,3.09090656]
[1769346181660,1.13690048,2943.8,2942.9,2.24137599]
[1769346181979,0.002,2943.8,2942.9,2.24137599]
[1769346182152,1.1324865,2943.8,2942.9,2.24137599]
[1769346187879,0.002,2943.6,2942.9,2.24137599]
[1769346195500,0.002,2943.6,2942.7,2.11421026]
[1769346195874,1.06839068,2943.6,2942.7,2.11421026]
[1769346196275,1.06839068,2943.6,2942.6,0.712]
[1769346197492,1.06839068,2943.6,2942.5,2.11521026]
[1769346198104,1.0592209,2943.4,2942.5,0.001]
[1769346199408,0.19176631,2943.5,2942.5,2.11521026]
[1769346199603,1.0576706,2943.6,2942.8,0.001]
[1769346202003,2.005826,2943.5,2942.8,0.001]
[1769346202316,1.04531623,2943.5,2942.8,0.001]
[1769346205207,1.04531623,2943.5,2942.6,2.11421026]
[1769346206020,1.03208106,2943.4,2942.5,0.001]
[1769346206185,0.48025834,2943.3,2942.5,0.001]
[1769346206515,0.48025834,2943.3,2942.5,2.11521026]
[1769346210331,2.9211661,2943.5,2942.5,2.11521026]
[1769346211117,0.002,2943.4,2942.8,2.11421026]
[1769346224854,0.002,2943.2,2942.7,0.001]
[1769346229557,0.002,2943.2,2942.5,0.001]
[1769346229558,0.96616775,2943.2,2942.5,0.001]
[1769346230633,10.42833493,2943.1,2942.5,0.001]
[1769346230841,1.04303349,2943.0,2942.5,0.001]
[1769346231157,0.96172493,2943.1,2942.5,0.001]
[1769346231846,0.002,2943.2,2942.5,2.08441393]
[1769346233565,0.002,2943.2,2942.7,2.08341393]
[1769346237564,0.002,2943.2,2942.7,2.08441393]
[1769346237770,0.002,2943.0,2942.7,2.08441393]
[1769346238483,0.002,2943.0,2942.7,0.001]
[1769346241661,0.002,2943.0,2942.5,2.08441393]
[1769346242470,0.002,2943.0,2942.5,0.001]
[1769346242675,0.93647628,2943.0,2942.5,0.001]
[1769346243668,0.93647628,2943.0,2942.2,2.08441393]
[1769346244264,0.002,2943.0,2942.4,1.9873348]
[1769346244979,0.002,2943.0,2942.2,1.9883348]
[1769346245493,0.92821663,2943.0,2942.2,0.001]
[1769346248976,0.92821663,2943.0,2942.0,1.9873348]
[1769346250658,0.002,2943.0,2942.0,1.9873348]
[1769346251258,2.9231661,2943.0,2942.0,1.9873348]
[1769346251458,0.29231661,2942.9,2942.2,0.001]
[1769346251660,0.29231661,2942.9,2942.3,1.9873348]
[1769346251859,0.002,2942.8,2942.3,1.9873348]
[1769346253868,0.002,2942.8,2942.3,1.9873348]
[1769346259394,2.9231661,2943.0,2942.4,2.16291973]
[1769346260569,0.002,2943.2,2942.5,2.16291973]
[1769346260765,0.002,2943.2,2942.7,2.16291973]
[1769346261994,2.11458045,2943.2,2942.3,2.16291973]
[1769346263999,2.11458045,2943.2,2942.4,0.001]
[1769346264403,0.002,2943.0,2942.4,0.001]
[1769346267381,2.11458045,2943.0,2942.4,0.001]
[1769346267582,0.21145805,2942.9,2942.4,0.001]
[1769346267773,2.11458045,2943.0,2942.4,0.001]
[1769346268592,2.11458045,2943.0,2942.2,0.001]
[1769346270485,0.002,2943.0,2942.2,2.16391973]
[1769346273517,2.20978177,2943.0,2942.2,2.16391973]
[1769346274112,0.002,2943.0,2942.2,2.16391973]
[1769346274313,0.002,2943.0,2942.2,2.3803117]
[1769346275519,2.20978177,2943.0,2942.0,2.17613805]
[1769346276031,2.20978177,2943.0,2942.4,0.001]
[1769346276221,2.20978177,2943.0,2942.0,2.17613805]
[1769346276609,2.20978177,2943.0,2941.8,2.17713805]
[1769346276819,2.20778177,2942.8,2941.8,2.17713805]
[1769346277725,2.20778177,2942.6,2941.8,0.001]
[1769346278118,2.20778177,2942.9,2941.8,2.17713805]
[1769346279798,0.74778281,2943.0,2941.8,2.17713805]
[1769346281200,0.74778281,2943.0,2941.9,2.17613805]
[1769346281403,0.74778281,2943.0,2942.1,2.17613805]
[1769346285931,0.74778281,2943.0,2942.1,0.84973079]
[1769346286133,0.74778281,2943.0,2942.2,2.17613805]
[1769346287612,0.74778281,2943.0,2942.4,2.17613805]
[1769346287814,0.002,2942.8,2942.4,2.17613805]
[1769346288043,0.002,2942.8,2942.5,0.2177138]
[1769346288339,0.002,2942.8,2942.5,2.39385185]
[1769346288545,0.74778281,2943.0,2942.6,2.17613805]
[1769346292249,0.002,2943.0,2942.6,2.17613805]
[1769346298745,0.002,2943.2,2942.6,2.17613805]
[1769346298946,0.002,2943.2,2942.8,2.17613805]
[1769346300044,0.002,2943.2,2942.8,2.17713805]
[1769346300449,0.002,2943.0,2942.8,2.17713805]
[1769346308749,2.20978177,2943.6,2942.9,2.14463808]
[1769346308750,0.002,2943.6,2942.9,2.14463808]
[1769346308951,0.002,2943.6,2943.1,2.14463808]
[1769346309163,0.002,2943.6,2943.1,2.35910189]
[1769346309873,0.002,2943.6,2943.1,0.21446381]
[1769346310033,0.002,2943.6,2942.9,2.14463808]
[1769346312337,0.002,2943.6,2943.0,2.14463808]
[1769346312839,0.002,2943.4,2943.0,2.14563808]
[1769346324987,0.002,2943.4,2943.2,0.001]
[1769346334620,0.002,2943.6,2943.2,2.24669684]
[1769346335182,0.002,2943.6,2943.2,0.001]
[1769346337110,0.002,2943.6,2943.2,2.24669684]
[1769346337300,0.002,2943.6,2943.2,2.55641302]
[1769346337710,0.002,2943.6,2943.2,0.31071618]
[1769346338812,0.002,2943.6,2943.2,2.55641302]
[1769346339380,0.002,2943.6,2943.3,2.24569684]
[1769346339585,0.002,2943.8,2943.3,2.24569684]
[1769346339905,0.68716183,2944.0,2943.2,1.16012502]
[1769346339906,0.68716183,2944.0,2943.5,2.24569684]
[1769346340104,0.00030157,2944.1,2943.5,2.24569684]
[1769346341617,0.00030157,2944.1,2943.6,2.24569684]
[1769346344828,0.00030157,2944.1,2943.7,2.24569684]
[1769346347107,0.00030157,2944.1,2943.7,2.27434021]
[1769346347418,0.00030157,2944.1,2943.8,0.31236346]
[1769346348019,0.002,2943.9,2943.8,2.24569684]
[1769346350216,0.002,2943.9,2943.6,2.24569684]
[1769346354034,0.002,2943.9,2943.6,3.094996]
[1769346357729,0.002,2943.9,2943.7,2.24569684]
[1769346357929,0.002,2943.9,2943.8,0.3094996]
[1769346359128,0.002,2943.9,2943.5,3.12428064]
[1769346360741,0.002,2943.9,2943.8,0.001]
[1769346362145,0.00030157,2944.1,2943.8,2.24669684]
[1769346368248,0.00030157,2944.1,2943.8,0.001]
[1769346372231,0.002,2943.9,2943.8,2.10421103]
[1769346372445,0.002,2944.4,2943.9,2.10321103]
[1769346372646,0.002,2944.4,2944.0,2.13364602]
[1769346373850,0.002,2944.4,2944.1,2.10321103]
[1769346374351,0.002,2944.4,2944.2,0.03396508]
[1769346374531,0.002,2944.4,2944.2,2.05527779]
[1769346374740,0.002,2944.4,2944.2,2.3491185]
[1769346379057,0.002,2944.4,2944.2,0.29384071]
[1769346379262,0.002,2944.4,2944.1,0.03396623]
[1769346381062,0.002,2944.4,2944.0,0.712]
[1769346381263,0.002,2944.4,2943.9,0.03396854]
[1769346381465,0.002,2944.4,2943.8,1.8066146]
[1769346382643,0.002,2944.4,2943.9,0.8492122]
[1769346382843,0.002,2944.4,2944.0,0.18066018]
[1769346383666,0.002,2944.1,2944.0,0.18066018]
[1769346384242,0.002,2944.1,2944.0,1.06381119]
[1769346384561,0.002,2944.1,2944.0,3.11908898]
[1769346384760,0.002,2944.4,2944.0,3.11908898]
[1769346384962,0.002,2944.4,2944.1,0.3119089]
[1769346387753,0.002,2944.4,2944.0,0.21462641]
[1769346387954,0.002,2944.4,2944.0,0.18066018]
[1769346390562,0.002,2944.4,2944.1,0.03396623]
[1769346391466,0.002,2944.4,2944.1,2.08924402]
[1769346391658,0.002,2944.5,2944.2,2.05527779]
[1769346391852,0.002,2944.5,2944.3,0.24288833]
[1769346392072,0.002,2944.8,2944.3,2.08924172]
[1769346392285,0.002,2944.8,2944.3,2.93831422]
[1769346394571,0.002,2944.8,2944.4,2.816398]
[1769346394777,0.002,2944.8,2944.5,0.03396162]
[1769346395166,0.002,2944.8,2944.5,2.13935962]
[1769346395367,0.002,2944.8,2944.6,0.28503596]
[1769346395566,0.002,2944.8,2944.7,0.03395931]
[1769346395767,0.002,2944.8,2944.6,0.31899643]
[1769346396683,0.002,2944.8,2944.6,0.28503596]
[1769346396883,0.002,2944.8,2944.4,1.59402921]
[1769346397190,0.002,2944.8,2944.6,2.95440084]
[1769346397999,0.002,2944.8,2944.6,2.13935847]
[1769346398354,0.002,2944.8,2944.6,2.98836654]
[1769346399355,0.002,2944.8,2944.6,0.03396047]
[1769346399554,0.002,2944.8,2944.6,0.36994142]
[1769346399958,2.04356031,2944.8,2944.3,1.56009305]
[1769346400291,2.04356031,2944.8,2944.3,0.711]
[1769346400852,2.04356031,2944.8,2944.1,0.001]
[1769346405457,2.04156031,2944.7,2944.1,0.001]
[1769346405700,2.04156031,2944.4,2943.4,0.001]
[1769346405905,2.04156031,2944.2,2943.4,0.001]
[1769346407493,2.04156031,2944.7,2943.4,2.106398]
[1769346408081,2.04156031,2944.7,2944.3,0.001]
[1769346408282,2.04156031,2944.7,2943.4,2.106398]
[1769346409421,2.04156031,2944.5,2943.4,2.106398]
[1769346409621,2.04156031,2944.3,2943.4,2.106398]
[1769346410913,2.04156031,2944.3,2943.4,0.85034569]
[1769346411116,2.04156031,2944.3,2943.5,2.105398]
[1769346413528,0.20415603,2944.4,2943.5,2.105398]
[1769346414010,0.20415603,2944.4,2943.7,2.105398]
[1769346414210,3.792862,2944.7,2943.8,0.03396969]
[1769346414417,2.04156031,2944.6,2943.8,0.03396969]
[1769346414622,2.04156031,2944.4,2943.4,0.001]
[1769346414917,0.85095612,2944.8,2943.4,0.001]
[1769346414918,2.04156031,2944.2,2943.4,0.001]
[1769346415120,2.04156031,2944.0,2943.4,0.001]
[1769346415502,2.04156031,2944.0,2943.2,0.001]
[1769346416020,2.04156031,2943.9,2942.8,0.001]
[1769346416425,2.04156031,2943.9,2942.4,2.85133862]
[1769346416426,2.04156031,2943.5,2942.4,0.712]
[1769346416719,2.04156031,2943.3,2942.4,0.712]
[1769346416922,2.04156031,2943.1,2942.0,2.1393877]
[1769346419628,2.04156031,2943.1,2942.0,2.98914828]
[1769346419829,2.04156031,2943.1,2942.5,0.001]
[1769346420239,0.20415603,2943.2,2942.5,0.001]
[1769346421726,2.04156031,2943.2,2942.5,0.001]
[1769346422222,2.04156031,2943.7,2942.6,2.105398]
[1769346422412,3.607792,2943.7,2942.7,2.13937844]
[1769346422630,2.04156031,2943.7,2942.7,2.13937844]
[1769346423162,2.04156031,2943.7,2942.7,2.105398]
[1769346423369,2.41786718,2943.6,2942.7,2.105398]
[1769346423725,2.311422,2943.5,2942.7,2.105398]
[1769346424045,2.20091115,2943.5,2942.7,2.105398]
[1769346427357,0.21695603,2943.6,2942.7,2.105398]
[1769346427561,4.49123155,2944.3,2942.9,2.20641566]
[1769346427562,2.20091115,2943.9,2942.9,2.20641566]
[1769346427772,2.32891115,2944.0,2942.9,2.20641566]
[1769346428454,2.32891115,2944.0,2943.0,2.24039141]
[1769346428660,2.32891115,2944.0,2943.0,2.20641566]
[1769346429224,2.20091115,2943.8,2942.5,2.24140036]
[1769346429429,2.20091115,2943.6,2942.6,0.22414004]
[1769346429649,2.20091115,2943.6,2942.5,0.001]
[1769346431439,2.20091115,2943.6,2942.7,0.001]
[1769346431635,0.002,2943.4,2942.7,0.001]
[1769346431839,2.20291115,2943.4,2942.7,0.001]
[1769346433939,2.20091115,2943.2,2942.7,0.001]
[1769346434140,2.20091115,2943.0,2942.7,0.001]
[1769346435655,2.04524644,2943.3,2942.7,0.001]
[1769346436454,2.04524644,2943.3,2942.5,0.001]
[1769346439562,0.002,2943.4,2942.5,2.00577499]
[1769346439771,0.002,2943.4,2942.6,2.03875852]
[1769346439940,0.002,2943.4,2942.8,2.00477499]
[1769346440974,0.002,2943.4,2942.6,2.00477499]
[1769346443665,0.002,2943.4,2942.9,2.00477499]
[1769346443971,0.002,2943.3,2942.9,2.00477499]
[1769346448285,0.002,2943.3,2942.8,0.001]
[1769346451250,0.002,2943.3,2942.8,0.2015775]
[1769346452152,0.002,2943.3,2942.8,0.19817951]
[1769346453475,0.002,2943.3,2942.8,2.137124]
[1769346455988,0.002,2943.2,2942.8,2.137124]
[1769346460984,0.002,2943.2,2942.6,1.93894449]
[1769346466073,0.00060234,2943.3,2942.6,1.93894449]
[1769346466500,1.97870005,2943.3,2942.5,0.03498239]
[1769346466812,1.97870005,2943.3,2942.5,1.97392688]
[1769346467396,0.00060234,2943.3,2942.5,1.97392688]
[1769346467595,0.00060234,2943.3,2942.6,0.19739269]
[1769346468907,0.00060234,2943.3,2942.8,0.001]
[1769346469114,0.002,2943.1,2942.8,0.001]
[1769346481534,1.98009771,2943.1,2942.1,1.93894449]
[1769346481704,1.97809771,2942.9,2941.9,1.93894449]
[1769346482408,1.97809771,2942.9,2941.7,1.93894449]
[1769346488153,0.19800977,2943.0,2941.9,2.04939036]
[1769346488354,0.97944651,2943.1,2941.9,2.04939036]
[1769346488654,0.81516183,2943.1,2941.9,2.04939036]
[1769346488845,1.92638235,2943.0,2941.9,2.04939036]
[1769346492365,1.92638235,2943.0,2942.0,0.001]
[1769346492657,0.002,2942.8,2942.0,0.001]
[1769346492869,1.92638235,2942.7,2941.5,0.88387883]
[1769346493072,2.05438235,2941.7,2940.2,0.2949694]
[1769346493235,1.92638235,2941.7,2940.4,2.04939036]
[1769346493431,0.19283824,2942.6,2940.8,2.04939036]
[1769346493646,1.92638235,2942.3,2941.0,2.04939036]
[1769346493879,1.92638235,2942.3,2940.7,2.04939036]
[1769346494865,5.284079,2942.0,2940.7,2.04939036]
[1769346495162,1.94208875,2941.9,2940.7,2.04939036]
[1769346495863,0.8497043,2942.2,2940.3,1.98868961]
[1769346495864,13.604971,2941.6,2940.3,1.98868961]
[1769346496038,0.8836914,2942.2,2940.3,1.98868961]
[1769346496039,1.94208875,2941.5,2940.3,1.98868961]
[1769346497773,1.94208875,2941.5,2939.9,1.98868961]
[1769346497948,1.94208875,2941.5,2939.8,1.98868961]
[1769346497949,1.87061012,2940.1,2939.8,1.98868961]
[1769346498154,1.94208875,2940.9,2939.8,1.98868961]
[1769346498363,2.13629763,2940.9,2939.9,0.19886896]
[1769346498761,1.94208875,2940.7,2939.6,1.99068961]
[1769346500059,2.13629763,2940.9,2939.7,1.98868961]
[1769346500260,2.62725058,2941.5,2939.9,1.98868961]
[1769346500460,1.94208875,2941.7,2940.3,1.98868961]
[1769346500661,0.0339871,2941.6,2940.3,1.98868961]
[1769346500859,0.0339871,2941.6,2940.5,1.98868961]
[1769346501468,1.97607585,2941.6,2940.5,1.98868961]
[1769346501667,1.97607585,2941.6,2940.2,1.98868961]
[1769346501668,2.13969634,2941.5,2940.2,1.98868961]
[1769346502783,0.0339871,2941.4,2940.2,1.98868961]
[1769346503080,0.0339871,2941.4,2940.3,1.98868961]
[1769346503254,2.13969634,2941.5,2940.3,1.98868961]
[1769346504283,0.0339871,2941.4,2940.3,1.98868961]
[1769346504483,0.25135544,2941.4,2940.5,1.98868961]
[1769346504671,0.25135544,2941.4,2940.7,0.002]
[1769346509488,1.94208875,2941.3,2940.7,0.002]
[1769346510259,0.25135544,2941.4,2940.7,0.002]
[1769346517411,2.38148341,2941.4,2940.7,0.002]
[1769346517608,0.23814834,2941.3,2940.7,0.002]
[1769346519714,2.16411507,2941.4,2940.7,2.02770269]
[1769346519715,0.001,2941.4,2940.7,2.02770269]
[1769346521017,2.16311507,2942.4,2940.8,1.9917528]
[1769346521219,2.16311507,2942.4,2941.0,1.9917528]
[1769346521220,2.12912797,2942.2,2941.0,1.9917528]
[1769346521422,0.0339871,2942.1,2941.0,1.9917528]
[1769346521622,2.16311507,2942.1,2941.0,1.9917528]
[1769346522486,2.12912797,2941.7,2940.7,0.002]
[1769346522715,2.12912797,2941.7,2940.7,1.9937528]
[1769346522716,0.8506436,2941.6,2940.7,1.9937528]
[1769346522924,0.0339871,2941.9,2940.8,1.9917528]
[1769346523318,2.12912797,2941.9,2940.8,1.9917528]
[1769346523511,2.16311507,2941.8,2940.8,1.9917528]
[1769346529250,0.001,2941.6,2940.8,1.9917528]
[1769346529447,2.13012797,2941.6,2940.8,1.9917528]
[1769346529618,0.2130128,2941.5,2940.8,1.9917528]
[1769346533727,0.001,2941.6,2940.9,1.9917528]
[1769346534626,0.001,2941.6,2940.9,2.84181941]
[1769346534827,0.001,2941.6,2941.0,1.9917528]
[1769346536259,0.001,2941.6,2940.7,0.002]
[1769346536260,2.13012797,2941.6,2940.7,0.002]
[1769346536439,2.34214077,2941.5,2940.7,0.002]
[1769346540550,2.34214077,2941.5,2940.9,0.002]
[1769346540859,2.16311507,2941.4,2940.9,0.002]
[1769346542740,2.16311507,2941.4,2940.7,0.002]
[1769346548573,2.16311507,2941.4,2940.6,0.002]
[1769346548873,2.04137067,2941.2,2940.6,0.002]
[1769346549043,2.07535777,2941.2,2940.6,0.002]
[1769346550168,2.07535777,2941.2,2940.5,0.002]
[1769346551554,2.07535777,2941.2,2940.0,2.10906575]
[1769346551839,2.04137067,2941.1,2940.0,2.10906575]
[1769346552039,2.35140973,2941.0,2940.0,2.10906575]
[1769346553843,2.35140973,2941.0,2940.7,0.002]
[1769346554052,2.35140973,2941.0,2940.0,2.10906575]
[1769346554454,2.35140973,2941.0,2940.5,0.002]
[1769346554655,2.35140973,2941.0,2940.0,2.10906575]
[1769346554855,0.23514097,2940.9,2940.0,2.10906575]
[1769346555050,2.30360138,2940.9,2940.0,2.10906575]
[1769346555252,0.0339871,2940.8,2940.0,2.10906575]
[1769346555541,2.10244751,2940.8,2939.7,2.27760982]
[1769346566002,2.10244751,2940.8,2939.9,0.002]
[1769346566203,0.23375885,2940.7,2939.9,0.002]
[1769346566410,0.001,2940.6,2939.9,2.27960982]
[1769346571221,0.001,2940.6,2939.9,0.002]
[1769346576419,0.001,2940.6,2940.0,2.12888431]
[1769346576647,0.0339871,2941.1,2940.2,2.12888431]
[1769346579235,0.001,2941.0,2940.2,2.12888431]
[1769346585451,0.001,2941.0,2940.3,2.12888431]
[1769346585761,0.001,2941.0,2940.2,0.88428898]
[1769346585762,0.001,2941.0,2940.5,2.12888431]
[1769346587880,0.001,2941.0,2940.6,2.12888431]
[1769346588058,0.001,2941.6,2940.7,2.12888431]
[1769346588346,0.001,2941.6,2940.9,2.12888431]
[1769346590513,0.001,2941.6,2940.8,0.21288843]
[1769346590714,2.13418448,2941.6,2940.8,0.21288843]
[1769346590915,0.001,2941.6,2940.8,2.34177274]
[1769346591647,0.001,2941.0,2940.8,2.34177274]
[1769346591848,0.001,2941.0,2940.9,2.36306158]
[1769346593754,0.001,2941.6,2940.9,0.23417727]
[1769346594255,2.13418448,2941.6,2940.5,2.12888431]
[1769346594959,0.001,2941.6,2940.5,2.12888431]
[1769346596427,0.001,2941.6,2940.7,2.12888431]
[1769346598755,0.001,2941.6,2940.8,2.12888431]
[1769346600760,0.001,2941.6,2941.0,2.12888431]
[1769346601057,2.13318448,2942.2,2941.2,2.12888431]
[1769346601058,2.16717158,2942.2,2941.2,2.12888431]
[1769346601255,2.13318448,2942.2,2941.2,2.12888431]
[1769346602060,2.13318448,2942.2,2941.1,0.29789642]
[1769346602262,2.13318448,2942.0,2940.8,0.85009485]
[1769346602427,2.13318448,2942.0,2940.9,2.12888431]
[1769346603658,2.13318448,2942.0,2940.9,2.97894845]
[1769346603870,2.28069249,2942.4,2941.0,2.35404413]
[1769346604233,2.28069249,2942.4,2941.0,2.35604413]
[1769346604557,0.001,2941.8,2941.0,2.35604413]
[1769346604735,0.001,2941.8,2941.2,2.35404413]
[1769346605932,0.001,2941.8,2941.3,2.35404413]
[1769346606371,2.96585432,2942.6,2941.3,2.35404413]
[1769346606878,2.31467959,2942.5,2941.3,2.35404413]
[1769346607085,2.61476373,2942.5,2941.5,2.35404413]
[1769346607582,2.58077663,2942.5,2941.5,2.35404413]
[1769346608182,2.28069249,2942.5,2941.5,2.35404413]
[1769346608753,2.31467959,2942.4,2941.5,2.35404413]
[1769346608953,2.28069249,2942.4,2941.5,2.35404413]
[1769346613278,0.68516183,2942.6,2941.6,2.35404413]
[1769346613575,2.96585432,2942.6,2941.6,2.35404413]
[1769346613781,2.96585432,2942.6,2941.7,2.67443853]
[1769346614879,2.35256534,2942.5,2941.7,0.3203944]
[1769346615256,2.38655244,2942.4,2941.5,2.19488521]
[1769346616858,2.38655244,2942.4,2941.5,2.19588521]
[1769346617257,2.38855244,2942.4,2941.5,2.19588521]
[1769346617909,2.38855244,2942.4,2941.5,0.001]
[1769346618960,0.5,2942.2,2941.5,0.001]
[1769346619154,2.85256534,2942.2,2941.5,0.001]
[1769346620086,0.68716183,2942.6,2941.6,0.07485157]
[1769346620087,0.002,2942.6,2941.6,0.07485157]
[1769346620289,0.002,2942.6,2941.7,2.22885487]
[1769346620599,0.002,2942.6,2941.9,2.19488521]
[1769346620755,0.002,2942.6,2942.1,2.19488521]
[1769346622091,0.002,2942.6,2942.2,2.22884909]
[1769346622301,0.002,2942.6,2942.2,2.19488521]
[1769346630803,0.002,2942.6,2942.3,0.001]
[1769346631175,0.002,2942.4,2942.3,0.001]
[1769346631369,0.002,2942.4,2942.3,0.22058852]
[1769346636586,0.002,2942.4,2942.3,0.001]
[1769346662419,2.22764953,2942.4,2942.3,0.001]
[1769346663125,2.72764953,2942.4,2942.3,0.001]
[1769346665340,2.72764953,2942.4,2941.5,0.713]
[1769346666519,2.72764953,2942.4,2941.5,0.001]
[1769346666845,2.29681345,2942.2,2941.5,0.001]
[1769346668042,2.65454074,2942.3,2941.5,0.001]
[1769346672449,2.65454074,2942.3,2941.5,2.37994594]
[1769346672626,0.5359871,2942.4,2941.5,2.37994594]
[1769346672627,2.79881345,2942.4,2941.5,2.37994594]
[1769346672826,2.79881345,2942.4,2941.5,0.001]
[1769346676119,2.27565639,2942.2,2941.5,0.001]
[1769346677651,2.27565639,2942.2,2941.7,0.001]
[1769346682162,2.27565639,2942.2,2941.5,0.001]
[1769346682348,2.27565639,2942.0,2941.5,0.001]
[1769346689053,0.23096435,2942.1,2941.7,0.001]
[1769346689553,0.002,2942.0,2941.7,0.001]
[1769346694777,2.3895202,2942.0,2941.7,0.001]
[1769346695847,0.002,2942.0,2941.7,0.001]
[1769346696064,0.26424846,2942.0,2941.7,0.001]
[1769346702173,0.002,2941.8,2941.7,0.001]
[1769346711283,0.00060073,2942.0,2941.7,0.001]
[1769346715586,0.00060073,2942.0,2941.9,0.001]
[1769346715882,0.00060073,2942.0,2941.7,0.001]
[1769346716180,0.24301153,2942.0,2941.7,0.001]
[1769346719695,0.00060073,2942.0,2941.7,0.001]
[1769346724875,0.5,2941.8,2941.7,0.001]
[1769346756333,0.5,2941.8,2941.5,0.001]
[1769346759850,0.5,2941.8,2941.1,2.39983261]
[1769346762357,0.5,2941.8,2941.3,0.001]
[1769346762540,0.77662147,2941.8,2941.3,0.001]
[1769346764044,3.00824836,2941.8,2941.3,0.001]
[1769346764630,0.0339871,2941.7,2941.3,0.001]
[1769346766152,3.00824836,2941.8,2941.3,0.001]
[1769346766320,0.0339871,2941.7,2941.3,0.001]
[1769346766520,0.33821065,2941.7,2941.3,0.001]
[1769346767747,0.30422355,2941.7,2941.3,0.001]
[1769346768555,0.5,2941.8,2941.3,0.001]
[1769346774258,0.5,2941.8,2941.5,0.001]
[1769346785681,0.002,2941.6,2941.5,0.001]
[1769346802758,0.002,2941.6,2941.3,0.001]
[1769346804091,0.002,2941.6,2941.0,0.002]
[1769346804389,0.23480653,2941.6,2941.0,0.002]
[1769346804890,0.5,2941.4,2941.0,0.002]
[1769346805088,2.29007822,2941.3,2940.4,0.002]
[1769346807601,2.29007822,2941.1,2940.4,0.002]
[1769346807891,3.37153494,2941.0,2940.4,0.002]
[1769346808079,2.29007822,2941.0,2940.4,0.002]
[1769346809498,2.29007822,2941.0,2940.6,0.001]
[1769346810370,2.29007822,2941.3,2940.4,0.002]
[1769346810874,2.32406532,2941.2,2940.4,0.002]
[1769346811092,0.23240653,2941.1,2940.4,0.002]
[1769346815302,0.0339871,2941.0,2940.4,0.002]
[1769346817502,2.2919098,2941.0,2940.4,0.002]
[1769346821009,2.2919098,2941.0,2940.6,0.002]
[1769346821182,2.2579227,2941.0,2940.4,0.002]
[1769346821383,0.001,2940.8,2940.4,0.002]
[1769346832998,0.001,2940.8,2940.6,0.002]
[1769346833188,0.001,2940.8,2940.4,0.002]
[1769346843794,0.001,2940.8,2940.1,0.002]
[1769346844424,0.001,2940.8,2940.6,0.002]
[1769346844626,0.22422023,2940.7,2940.1,0.002]
[1769346844820,0.001,2940.6,2940.1,0.002]
[1769346844995,0.001,2940.6,2940.4,0.002]
[1769346845193,0.001,2940.6,2940.1,0.002]
[1769346845422,0.001,2940.6,2940.1,2.2697312]
[1769346856735,0.001,2940.6,2940.3,0.002]
[1769346857203,0.001,2940.4,2940.3,0.002]
[1769346861336,0.22996768,2940.4,2940.3,0.002]
[1769346863628,0.22996768,2940.4,2940.0,0.002]
[1769346865736,0.001,2940.4,2940.0,0.002]
[1769346866152,0.001,2940.4,2940.0,2.28972103]
[1769346869769,0.001,2940.4,2940.2,0.002]
[1769346874275,0.001,2940.4,2940.0,0.002]
[1769346879475,0.001,2940.4,2939.9,0.002]
[1769346879647,0.23336639,2940.4,2939.9,0.002]
[1769346881877,0.23336639,2940.4,2940.1,0.002]
[1769346882175,0.001,2940.2,2940.1,0.002]
[1769346882554,0.501,2940.2,2940.1,0.002]
[1769346883482,0.001,2940.2,2940.1,0.002]
[1769346902490,0.001,2940.2,2940.1,2.32756723]
[1769346902806,0.001,2940.4,2940.1,2.32756723]
[1769346904574,0.5,2940.2,2940.1,2.32756723]
[1769346905015,0.001,2940.4,2940.1,2.32756723]
[1769346906391,0.001,2940.4,2940.1,0.002]
[1769346907029,0.001,2940.2,2940.1,0.002]
[1769346907238,2.31714106,2940.2,2939.6,0.03401823]
[1769346907439,2.31714106,2940.2,2939.2,0.002]
[1769346907440,0.23171411,2940.1,2939.3,2.19195024]
[1769346907597,2.31714106,2940.2,2939.4,2.22597078]
[1769346907598,0.001,2940.2,2939.4,2.22597078]
[1769346909612,0.5,2940.0,2939.4,2.22597078]
[1769346912836,0.5,2940.0,2939.4,2.19195024]
[1769346918404,0.5,2940.0,2939.6,0.002]
[1769346918609,0.501,2940.0,2939.6,0.002]
[1769346918930,0.501,2940.0,2939.6,0.22139502]
[1769346928124,2.7292194,2940.0,2939.6,0.002]
[1769346929218,2.2292194,2940.0,2939.6,0.002]
[1769346930313,0.001,2940.0,2939.6,0.002]
[1769346930761,0.001,2940.0,2939.8,0.002]
[1769346941257,0.001,2940.4,2939.9,2.36645473]
[1769346941567,0.001,2940.4,2940.1,2.36645473]
[1769346943144,0.5,2940.3,2940.1,2.36645473]
[1769346944261,0.5,2940.3,2939.8,0.23904547]
[1769346944568,0.5,2940.3,2939.8,0.002]
[1769346945939,2.84992902,2940.3,2939.8,0.002]